[Event "*** Titled Tuesday Blitz"]
[Site "Chess.com"]
[Date "2020.10.27"]
[Round "4"]
[White "Kazmin_Dmitrij"]
[Black "fabianvivasz"]
[Result "0-1"]
[WhiteElo "2268"]
[BlackElo "2448"]
[TimeControl "180+1"]
[EndTime "10:38:35 PDT"]
[Termination "fabianvivasz won by checkmate"]

1. e4 {[%clk 0:03:00.9]} 1... e5 {[%clk 0:02:56.5]} 2. Nf3 {[%clk 0:03:00]} 2...
Nc6 {[%clk 0:02:56.4]} 3. Bb5 {[%clk 0:02:59.5]} 3... f5 {[%clk 0:02:55.9]} 4.
Nc3 {[%clk 0:02:26.4]} 4... fxe4 {[%clk 0:02:55.6]} 5. Nxe4 {[%clk 0:02:22.2]}
5... Nf6 {[%clk 0:02:55.8]} 6. Nxf6+ {[%clk 0:02:14.6]} 6... Qxf6 {[%clk
0:02:56.7]} 7. Qe2 {[%clk 0:02:10.2]} 7... Be7 {[%clk 0:02:56]} 8. Bxc6 {[%clk
0:02:09.9]} 8... bxc6 {[%clk 0:02:54.7]} 9. d4 {[%clk 0:01:57.9]} 9... Qg6
{[%clk 0:02:52.5]} 10. Nxe5 {[%clk 0:01:41.7]} 10... Qxg2 {[%clk 0:02:48.6]} 11.
Rf1 {[%clk 0:01:29.9]} 11... O-O {[%clk 0:02:32.1]} 12. Be3 {[%clk 0:01:15.4]}
12... d6 {[%clk 0:02:18.3]} 13. Qc4+ {[%clk 0:01:02.7]} 13... d5 {[%clk
0:02:10.9]} 14. Qxc6 {[%clk 0:00:58.3]} 14... Bg4 {[%clk 0:01:00.5]} 15. Nxg4
{[%clk 0:00:57.1]} 15... Qxg4 {[%clk 0:00:58.4]} 16. Qxd5+ {[%clk 0:00:56.4]}
16... Kh8 {[%clk 0:00:57.7]} 17. Kd2 {[%clk 0:00:51.6]} 17... Rad8 {[%clk
0:00:53.3]} 18. Qc6 {[%clk 0:00:37.6]} 18... Bg5 {[%clk 0:00:26.3]} 19. c3
{[%clk 0:00:27.8]} 19... Rf6 {[%clk 0:00:12.8]} 20. Qc5 {[%clk 0:00:22.1]} 20...
Bxe3+ {[%clk 0:00:09.3]} 21. Kxe3 {[%clk 0:00:16.7]} 21... Re8+ {[%clk
0:00:09.4]} 22. Kd2 {[%clk 0:00:15.4]} 22... Qe2+ {[%clk 0:00:09.8]} 23. Kc1
{[%clk 0:00:14.9]} 23... Qxf1+ {[%clk 0:00:10.2]} 24. Kc2 {[%clk 0:00:15.4]}
24... Qxa1 {[%clk 0:00:10.3]} 25. Qb5 {[%clk 0:00:13.4]} 25... Rxf2+ {[%clk
0:00:09.2]} 26. Kb3 {[%clk 0:00:13.1]} 26... Qxb2+ {[%clk 0:00:08.8]} 27. Kc4
{[%clk 0:00:12.2]} 27... Qxa2+ {[%clk 0:00:09.2]} 28. Kc5 {[%clk 0:00:11.8]}
28... Rf5+ {[%clk 0:00:08.6]} 29. Kc6 {[%clk 0:00:12.1]} 29... Qe6+ {[%clk
0:00:07.1]} 30. Kxc7 {[%clk 0:00:11]} 30... Rxb5 {[%clk 0:00:07.2]} 31. d5
{[%clk 0:00:11.4]} 31... Rc8# {[%clk 0:00:07.3]} 0-1

[Event "*** Titled Tuesday Blitz"]
[Site "Chess.com"]
[Date "2020.10.27"]
[Round "4"]
[White "andrzej"]
[Black "djano"]
[Result "1-0"]
[WhiteElo "2312"]
[BlackElo "2455"]
[TimeControl "180+1"]
[EndTime "10:38:37 PDT"]
[Termination "andrzej won by checkmate"]

1. e4 {[%clk 0:02:59]} 1... e5 {[%clk 0:02:59.5]} 2. Nf3 {[%clk 0:02:58.5]} 2...
d6 {[%clk 0:02:58.6]} 3. d4 {[%clk 0:02:57.7]} 3... exd4 {[%clk 0:02:59.5]} 4.
Nxd4 {[%clk 0:02:57.6]} 4... Nf6 {[%clk 0:02:59.2]} 5. Nc3 {[%clk 0:02:57.5]}
5... Be7 {[%clk 0:02:59.6]} 6. Bf4 {[%clk 0:02:53.9]} 6... a6 {[%clk 0:02:57]}
7. Qd2 {[%clk 0:02:49.5]} 7... b5 {[%clk 0:02:56.5]} 8. f3 {[%clk 0:02:45.2]}
8... O-O {[%clk 0:02:51.2]} 9. O-O-O {[%clk 0:02:40]} 9... b4 {[%clk 0:02:35]}
10. Nd5 {[%clk 0:02:30.7]} 10... Nxd5 {[%clk 0:02:24.2]} 11. exd5 {[%clk
0:02:31.6]} 11... Bf6 {[%clk 0:02:11.8]} 12. g4 {[%clk 0:02:29.9]} 12... Bb7
{[%clk 0:01:47.7]} 13. g5 {[%clk 0:02:27.9]} 13... Bxd4 {[%clk 0:01:38]} 14.
Qxd4 {[%clk 0:02:26.8]} 14... c5 {[%clk 0:01:38.4]} 15. Qd2 {[%clk 0:02:00.8]}
15... Nd7 {[%clk 0:01:35.5]} 16. h4 {[%clk 0:02:00.6]} 16... Ne5 {[%clk
0:01:34.1]} 17. Bxe5 {[%clk 0:01:58.6]} 17... dxe5 {[%clk 0:01:35]} 18. Bc4
{[%clk 0:01:54]} 18... a5 {[%clk 0:01:25.4]} 19. h5 {[%clk 0:01:53.4]} 19... Ba6
{[%clk 0:01:25.3]} 20. Bxa6 {[%clk 0:01:50.5]} 20... Rxa6 {[%clk 0:01:26.2]} 21.
Qe3 {[%clk 0:01:45.8]} 21... c4 {[%clk 0:01:13.4]} 22. Qxe5 {[%clk 0:01:28]}
22... Re8 {[%clk 0:01:13.3]} 23. Qf4 {[%clk 0:01:28.1]} 23... c3 {[%clk
0:01:07.4]} 24. h6 {[%clk 0:01:16.5]} 24... b3 {[%clk 0:00:49.1]} 25. cxb3
{[%clk 0:00:54.3]} 25... a4 {[%clk 0:00:46.5]} 26. Rde1 {[%clk 0:00:35.7]} 26...
axb3 {[%clk 0:00:39]} 27. Rxe8+ {[%clk 0:00:21.3]} 27... Qxe8 {[%clk 0:00:39.8]}
28. Qd4 {[%clk 0:00:16.3]} 28... cxb2+ {[%clk 0:00:37.1]} 29. Qxb2 {[%clk
0:00:13.5]} 29... Qe3+ {[%clk 0:00:26]} 30. Kb1 {[%clk 0:00:13.4]} 30... Qd3+
{[%clk 0:00:24.9]} 31. Ka1 {[%clk 0:00:03.6]} 31... Rxa2+ {[%clk 0:00:23.2]} 32.
Qxa2 {[%clk 0:00:04.1]} 32... bxa2 {[%clk 0:00:24.1]} 33. Rc1 {[%clk 0:00:04.1]}
33... Qd2 {[%clk 0:00:21.4]} 34. Rc8# {[%clk 0:00:02.2]} 1-0

[Event "*** Titled Tuesday Blitz"]
[Site "Chess.com"]
[Date "2020.10.27"]
[Round "4"]
[White "rasmussvane"]
[Black "WhiteKnight2612"]
[Result "0-1"]
[WhiteElo "2861"]
[BlackElo "2595"]
[TimeControl "180+1"]
[EndTime "10:38:39 PDT"]
[Termination "WhiteKnight2612 won on time"]

1. Nf3 {[%clk 0:03:00.9]} 1... Nf6 {[%clk 0:03:00.3]} 2. g3 {[%clk 0:03:00.7]}
2... e6 {[%clk 0:03:01.2]} 3. Bg2 {[%clk 0:03:00.6]} 3... Be7 {[%clk 0:03:02.1]}
4. O-O {[%clk 0:03:01.5]} 4... d5 {[%clk 0:02:58.9]} 5. c4 {[%clk 0:03:01.3]}
5... O-O {[%clk 0:02:54.3]} 6. b3 {[%clk 0:03:01.2]} 6... c5 {[%clk 0:02:42.7]}
7. cxd5 {[%clk 0:03:01.2]} 7... exd5 {[%clk 0:02:41.6]} 8. d4 {[%clk 0:03:00.9]}
8... Nc6 {[%clk 0:02:40]} 9. Nc3 {[%clk 0:03:01.2]} 9... Be6 {[%clk 0:02:39.7]}
10. Bb2 {[%clk 0:03:01.3]} 10... Rc8 {[%clk 0:02:39.3]} 11. Rc1 {[%clk
0:03:01.3]} 11... b6 {[%clk 0:02:31.8]} 12. e3 {[%clk 0:03:01.1]} 12... Qd7
{[%clk 0:02:31.9]} 13. Ne2 {[%clk 0:03:00.3]} 13... Rfd8 {[%clk 0:02:32.1]} 14.
Nf4 {[%clk 0:03:00.3]} 14... Bd6 {[%clk 0:02:32.2]} 15. dxc5 {[%clk 0:02:49.8]}
15... Bxc5 {[%clk 0:02:31.8]} 16. Ne5 {[%clk 0:02:14.1]} 16... Nxe5 {[%clk
0:02:29.6]} 17. Bxe5 {[%clk 0:02:15]} 17... Ne4 {[%clk 0:02:23.7]} 18. Qe2
{[%clk 0:01:48.9]} 18... Ba3 {[%clk 0:01:41.6]} 19. Rxc8 {[%clk 0:01:48.5]}
19... Qxc8 {[%clk 0:01:42.5]} 20. Rd1 {[%clk 0:01:43.3]} 20... Bf8 {[%clk
0:01:34.1]} 21. Bxe4 {[%clk 0:01:24.3]} 21... dxe4 {[%clk 0:01:33.7]} 22. Rxd8
{[%clk 0:01:24.5]} 22... Qxd8 {[%clk 0:01:33.3]} 23. Nxe6 {[%clk 0:01:25.1]}
23... fxe6 {[%clk 0:01:33.1]} 24. Kg2 {[%clk 0:01:09.8]} 24... Qd5 {[%clk
0:01:31.3]} 25. Bd4 {[%clk 0:01:06.3]} 25... Bc5 {[%clk 0:01:23.5]} 26. Bb2
{[%clk 0:01:00.3]} 26... h5 {[%clk 0:01:16.5]} 27. h3 {[%clk 0:00:57.9]} 27...
a5 {[%clk 0:01:14.9]} 28. Ba1 {[%clk 0:00:28]} 28... Ba3 {[%clk 0:01:12.5]} 29.
Qa6 {[%clk 0:00:23.2]} 29... Qf5 {[%clk 0:01:03.7]} 30. Qc8+ {[%clk 0:00:19.3]}
30... Kh7 {[%clk 0:01:03.1]} 31. Qc7 {[%clk 0:00:19.1]} 31... Qf3+ {[%clk
0:01:02.5]} 32. Kg1 {[%clk 0:00:16.3]} 32... Qd1+ {[%clk 0:01:02.3]} 33. Kg2
{[%clk 0:00:16.8]} 33... Qxa1 {[%clk 0:01:02.7]} 34. Qxb6 {[%clk 0:00:11.9]}
34... Qf6 {[%clk 0:01:01.6]} 35. Qc6 {[%clk 0:00:08.9]} 35... Qf3+ {[%clk
0:01:01.6]} 36. Kg1 {[%clk 0:00:09.3]} 36... Bb4 {[%clk 0:01:00.1]} 37. Qc1
{[%clk 0:00:06]} 37... h4 {[%clk 0:00:58.9]} 38. gxh4 {[%clk 0:00:04.3]} 38...
Qxh3 {[%clk 0:00:58.2]} 39. Qc4 {[%clk 0:00:03.9]} 39... Qg4+ {[%clk 0:00:56.9]}
40. Kf1 {[%clk 0:00:03.9]} 40... Qd1+ {[%clk 0:00:55.9]} 41. Kg2 {[%clk
0:00:04.2]} 41... Qg4+ {[%clk 0:00:55.6]} 42. Kf1 {[%clk 0:00:04.7]} 42... Kh6
{[%clk 0:00:52.5]} 43. Qd4 {[%clk 0:00:03.3]} 43... Qxh4 {[%clk 0:00:48.5]} 44.
Qe5 {[%clk 0:00:03.1]} 44... Qh1+ {[%clk 0:00:47.1]} 45. Ke2 {[%clk 0:00:03.3]}
45... Qh5+ {[%clk 0:00:48]} 46. Qxh5+ {[%clk 0:00:03.6]} 46... Kxh5 {[%clk
0:00:48.9]} 0-1

[Event "*** Titled Tuesday Blitz"]
[Site "Chess.com"]
[Date "2020.10.27"]
[Round "4"]
[White "Legendinunknown"]
[Black "ASVZ"]
[Result "1-0"]
[WhiteElo "2653"]
[BlackElo "2444"]
[TimeControl "180+1"]
[EndTime "10:38:40 PDT"]
[Termination "Legendinunknown won by resignation"]

1. d4 {[%clk 0:03:00.9]} 1... e6 {[%clk 0:03:00.4]} 2. c4 {[%clk 0:02:59.9]}
2... b6 {[%clk 0:02:58.9]} 3. a3 {[%clk 0:02:59.5]} 3... Bb7 {[%clk 0:02:57.7]}
4. Nc3 {[%clk 0:02:59.9]} 4... f5 {[%clk 0:02:57.3]} 5. d5 {[%clk 0:03:00.1]}
5... Nf6 {[%clk 0:02:55.1]} 6. g3 {[%clk 0:02:59.8]} 6... g6 {[%clk 0:02:54.6]}
7. Bg2 {[%clk 0:02:59.9]} 7... Bg7 {[%clk 0:02:55]} 8. Nh3 {[%clk 0:02:59.5]}
8... O-O {[%clk 0:02:55.1]} 9. O-O {[%clk 0:02:59.4]} 9... a5 {[%clk 0:02:54.9]}
10. dxe6 {[%clk 0:02:51.1]} 10... Bxg2 {[%clk 0:02:53.4]} 11. Kxg2 {[%clk
0:02:52]} 11... dxe6 {[%clk 0:02:53.4]} 12. Qxd8 {[%clk 0:02:52.3]} 12... Rxd8
{[%clk 0:02:53.7]} 13. Bf4 {[%clk 0:02:47.9]} 13... Na6 {[%clk 0:02:53.7]} 14.
Ng5 {[%clk 0:02:44]} 14... Re8 {[%clk 0:02:51.3]} 15. Nb5 {[%clk 0:02:43.9]}
15... e5 {[%clk 0:02:50.2]} 16. Bd2 {[%clk 0:02:39.7]} 16... h6 {[%clk
0:02:39.1]} 17. Nf3 {[%clk 0:02:39.3]} 17... Ne4 {[%clk 0:02:32.3]} 18. Rad1
{[%clk 0:02:32.5]} 18... Rad8 {[%clk 0:02:28.6]} 19. Bc1 {[%clk 0:02:30.9]}
19... Kf7 {[%clk 0:02:27.8]} 20. b3 {[%clk 0:02:29.5]} 20... c6 {[%clk
0:02:09.9]} 21. Na7 {[%clk 0:02:29.4]} 21... Nb8 {[%clk 0:01:42.7]} 22. Be3
{[%clk 0:02:27.1]} 22... Nc5 {[%clk 0:01:30.8]} 23. b4 {[%clk 0:02:24.7]} 23...
axb4 {[%clk 0:01:21.7]} 24. axb4 {[%clk 0:02:25.6]} 24... Na4 {[%clk 0:01:04.8]}
25. Ra1 {[%clk 0:02:22.4]} 25... Nc3 {[%clk 0:01:02.2]} 26. Bxb6 {[%clk
0:02:20.6]} 26... Rd7 {[%clk 0:01:00.1]} 27. Ng1 {[%clk 0:02:09.4]} 27... e4
{[%clk 0:01:00]} 28. Ra5 {[%clk 0:01:58.9]} 28... Rb7 {[%clk 0:00:57]} 29. Be3
{[%clk 0:01:58.3]} 29... Rxb4 {[%clk 0:00:48.2]} 30. Bf4 {[%clk 0:01:57.7]}
30... Rxc4 {[%clk 0:00:46.1]} 31. h4 {[%clk 0:01:44.3]} 31... Nd5 {[%clk
0:00:43.8]} 32. Bxb8 {[%clk 0:01:41.1]} 32... Rxb8 {[%clk 0:00:43.3]} 33. Nxc6
{[%clk 0:01:41.4]} 33... Nf4+ {[%clk 0:00:32.7]} 34. gxf4 {[%clk 0:01:40.4]}
34... Rxc6 {[%clk 0:00:33.6]} 35. Ra7+ {[%clk 0:01:34.1]} 35... Kg8 {[%clk
0:00:33.5]} 36. Rd1 {[%clk 0:01:34.3]} 36... Bf6 {[%clk 0:00:20.2]} 37. Rdd7
{[%clk 0:01:28.4]} 37... Bxh4 {[%clk 0:00:18.4]} 38. Rg7+ {[%clk 0:01:27.6]}
38... Kf8 {[%clk 0:00:17.8]} 39. Rh7 {[%clk 0:01:27.4]} 39... Kg8 {[%clk
0:00:18.4]} 40. Rxh6 {[%clk 0:01:22.6]} 40... Bf6 {[%clk 0:00:18.1]} 41. Rxg6+
{[%clk 0:01:22.1]} 41... Kh8 {[%clk 0:00:17.4]} 42. Rh6+ {[%clk 0:01:18.1]}
42... Kg8 {[%clk 0:00:17.1]} 43. Nh3 {[%clk 0:01:18.6]} 43... Rbc8 {[%clk
0:00:11.4]} 44. Rh5 {[%clk 0:01:16.6]} 44... Rc5 {[%clk 0:00:10.3]} 45. Ng5
{[%clk 0:01:16.4]} 45... Bxg5 {[%clk 0:00:10.4]} 46. Rxg5+ {[%clk 0:01:16.2]}
46... Kf8 {[%clk 0:00:11]} 47. Rh7 {[%clk 0:01:14.8]} 47... R8c6 {[%clk
0:00:09.3]} 48. e3 {[%clk 0:01:08.6]} 48... Rc8 {[%clk 0:00:04.4]} 49. Rh8+
{[%clk 0:01:07.8]} 49... Kf7 {[%clk 0:00:04.4]} 50. Rxc8 {[%clk 0:01:08.7]}
50... Rxc8 {[%clk 0:00:05.1]} 51. Rxf5+ {[%clk 0:01:09.1]} 51... Kg6 {[%clk
0:00:06]} 52. Re5 {[%clk 0:01:09]} 52... Kf6 {[%clk 0:00:06.9]} 53. Rxe4 {[%clk
0:01:08.8]} 53... Re8 {[%clk 0:00:07.8]} 54. Rxe8 {[%clk 0:01:08.1]} 1-0

[Event "*** Titled Tuesday Blitz"]
[Site "Chess.com"]
[Date "2020.10.27"]
[Round "4"]
[White "AleksanderHnydiuk"]
[Black "pastouche06"]
[Result "0-1"]
[WhiteElo "2525"]
[BlackElo "2496"]
[TimeControl "180+1"]
[EndTime "10:38:40 PDT"]
[Termination "pastouche06 won on time"]

1. d4 {[%clk 0:03:00.9]} 1... Nf6 {[%clk 0:02:51.8]} 2. Bf4 {[%clk 0:03:00.3]}
2... d5 {[%clk 0:02:51.7]} 3. e3 {[%clk 0:02:59.5]} 3... e6 {[%clk 0:02:52.2]}
4. Nf3 {[%clk 0:02:56.7]} 4... Bd6 {[%clk 0:02:52.3]} 5. Bd3 {[%clk 0:02:53.4]}
5... O-O {[%clk 0:02:51.6]} 6. O-O {[%clk 0:02:52.7]} 6... b6 {[%clk 0:02:52]}
7. Qe2 {[%clk 0:02:48.1]} 7... Bxf4 {[%clk 0:02:48.8]} 8. exf4 {[%clk
0:02:47.8]} 8... c5 {[%clk 0:02:49.4]} 9. c3 {[%clk 0:02:43.9]} 9... Nc6 {[%clk
0:02:43.1]} 10. Ne5 {[%clk 0:02:34.1]} 10... Bb7 {[%clk 0:02:34.1]} 11. Nd2
{[%clk 0:02:21.3]} 11... cxd4 {[%clk 0:02:31.3]} 12. Nxc6 {[%clk 0:02:20.6]}
12... Bxc6 {[%clk 0:02:32.2]} 13. cxd4 {[%clk 0:02:20.9]} 13... Qd6 {[%clk
0:02:31.1]} 14. Qe5 {[%clk 0:02:10.2]} 14... Qb4 {[%clk 0:02:15.2]} 15. Nb3
{[%clk 0:02:07.2]} 15... Bb5 {[%clk 0:02:05.6]} 16. Bxb5 {[%clk 0:01:55.2]}
16... Qxb5 {[%clk 0:02:06.5]} 17. Rac1 {[%clk 0:01:52.4]} 17... Rac8 {[%clk
0:02:01.4]} 18. Rc7 {[%clk 0:01:46.8]} 18... Rxc7 {[%clk 0:02:01.3]} 19. Qxc7
{[%clk 0:01:46.4]} 19... a5 {[%clk 0:02:01.7]} 20. Qc2 {[%clk 0:01:31.4]} 20...
g6 {[%clk 0:02:00.8]} 21. Rc1 {[%clk 0:01:29.3]} 21... Ne4 {[%clk 0:02:00.4]}
22. Nd2 {[%clk 0:01:20.6]} 22... Nd6 {[%clk 0:02:00.4]} 23. Qb3 {[%clk
0:01:08.3]} 23... Qe2 {[%clk 0:01:43.6]} 24. Qe3 {[%clk 0:01:01.8]} 24... Qb5
{[%clk 0:01:43.3]} 25. b3 {[%clk 0:00:53.7]} 25... Rc8 {[%clk 0:01:40.9]} 26.
Rxc8+ {[%clk 0:00:52.9]} 26... Nxc8 {[%clk 0:01:41.8]} 27. f3 {[%clk 0:00:37.8]}
27... Qc6 {[%clk 0:01:40.4]} 28. Qd3 {[%clk 0:00:29.6]} 28... Nd6 {[%clk
0:01:38.1]} 29. Kf2 {[%clk 0:00:29.2]} 29... Qc1 {[%clk 0:01:36.4]} 30. a4
{[%clk 0:00:20.5]} 30... Nf5 {[%clk 0:01:26.9]} 31. g3 {[%clk 0:00:20.2]} 31...
Qb2 {[%clk 0:01:26.2]} 32. Kg2 {[%clk 0:00:08.2]} 32... Nxd4 {[%clk 0:01:23.7]}
33. Kh3 {[%clk 0:00:08.3]} 33... Nf5 {[%clk 0:01:15]} 34. g4 {[%clk 0:00:08.1]}
34... Qd4 {[%clk 0:01:08.4]} 35. Qe2 {[%clk 0:00:04.2]} 35... Ne3 {[%clk
0:01:02.6]} 36. Nf1 {[%clk 0:00:02.6]} 36... Nxf1 {[%clk 0:00:57.9]} 37. Qxf1
{[%clk 0:00:03.5]} 37... Qxf4 {[%clk 0:00:58.3]} 38. Qd3 {[%clk 0:00:04.1]}
38... g5 {[%clk 0:00:53.6]} 39. Kg2 {[%clk 0:00:03.9]} 39... Kg7 {[%clk
0:00:47.7]} 40. Qb5 {[%clk 0:00:03.7]} 40... d4 {[%clk 0:00:43.5]} 41. Qxb6
{[%clk 0:00:02.7]} 41... d3 {[%clk 0:00:42.3]} 42. Qxa5 {[%clk 0:00:02.8]} 42...
d2 {[%clk 0:00:41.4]} 43. Qd8 {[%clk 0:00:03.3]} 43... Qe3 {[%clk 0:00:40.6]}
44. Qd6 {[%clk 0:00:01.3]} 44... Qe2+ {[%clk 0:00:39.1]} 45. Kg3 {[%clk
0:00:01.6]} 45... d1=Q {[%clk 0:00:40]} 0-1

[Event "*** Titled Tuesday Blitz"]
[Site "Chess.com"]
[Date "2020.10.27"]
[Round "4"]
[White "GalperinPlaton"]
[Black "Margarita2907"]
[Result "1-0"]
[WhiteElo "2827"]
[BlackElo "2198"]
[TimeControl "180+1"]
[EndTime "10:38:41 PDT"]
[Termination "GalperinPlaton won on time"]

1. a4 {[%clk 0:02:59.6]} 1... Nf6 {[%clk 0:02:57.4]} 2. Na3 {[%clk 0:03:00.1]}
2... e6 {[%clk 0:02:55.3]} 3. d4 {[%clk 0:02:53.5]} 3... d5 {[%clk 0:02:55.5]}
4. c3 {[%clk 0:02:53.2]} 4... a6 {[%clk 0:02:50]} 5. Nf3 {[%clk 0:02:53.3]} 5...
Bd6 {[%clk 0:02:49.8]} 6. Nc2 {[%clk 0:02:53.7]} 6... O-O {[%clk 0:02:49.7]} 7.
g3 {[%clk 0:02:54.2]} 7... b6 {[%clk 0:02:48.4]} 8. Bg2 {[%clk 0:02:54.5]} 8...
Bb7 {[%clk 0:02:48.8]} 9. O-O {[%clk 0:02:55.2]} 9... Nbd7 {[%clk 0:02:49.1]}
10. Re1 {[%clk 0:02:55.7]} 10... c5 {[%clk 0:02:49.4]} 11. Nd2 {[%clk 0:02:56]}
11... Qc7 {[%clk 0:02:41]} 12. e4 {[%clk 0:02:52.5]} 12... dxe4 {[%clk
0:02:40.5]} 13. Nxe4 {[%clk 0:02:53.4]} 13... Nxe4 {[%clk 0:02:40.6]} 14. Bxe4
{[%clk 0:02:54.3]} 14... Bxe4 {[%clk 0:02:40.1]} 15. Rxe4 {[%clk 0:02:55.2]}
15... Nf6 {[%clk 0:02:40]} 16. Rh4 {[%clk 0:02:55.7]} 16... Rad8 {[%clk
0:02:34.3]} 17. Qf3 {[%clk 0:02:56]} 17... Be7 {[%clk 0:02:23.7]} 18. Bg5 {[%clk
0:02:53.9]} 18... Nd5 {[%clk 0:02:16.9]} 19. Qh5 {[%clk 0:02:48.7]} 19... h6
{[%clk 0:02:04.2]} 20. Bxe7 {[%clk 0:02:48.4]} 20... Qxe7 {[%clk 0:02:00.3]} 21.
Re1 {[%clk 0:02:48.7]} 21... Nf6 {[%clk 0:01:51.3]} 22. Qf3 {[%clk 0:02:48.4]}
22... Rd5 {[%clk 0:01:46.9]} 23. Ne3 {[%clk 0:02:48]} 23... Rd7 {[%clk 0:01:45]}
24. Rh3 {[%clk 0:02:26.9]} 24... Qd8 {[%clk 0:01:42]} 25. dxc5 {[%clk
0:02:25.5]} 25... bxc5 {[%clk 0:01:40.8]} 26. Nc4 {[%clk 0:02:26]} 26... Rd3
{[%clk 0:01:38.2]} 27. Qe2 {[%clk 0:02:21.8]} 27... Rd5 {[%clk 0:01:36.1]} 28.
Ne5 {[%clk 0:02:20.2]} 28... Rd2 {[%clk 0:01:30.2]} 29. Qxa6 {[%clk 0:02:17.3]}
29... Rxb2 {[%clk 0:01:27.9]} 30. Qd3 {[%clk 0:02:17.6]} 30... Qxd3 {[%clk
0:01:20.7]} 31. Nxd3 {[%clk 0:02:18.5]} 31... Rc2 {[%clk 0:01:18.5]} 32. Nxc5
{[%clk 0:02:17.8]} 32... Rxc3 {[%clk 0:01:18.5]} 33. Nb7 {[%clk 0:02:17.6]}
33... Rb8 {[%clk 0:01:16.1]} 34. Nd6 {[%clk 0:02:16.5]} 34... Ra3 {[%clk
0:01:10.5]} 35. Rh4 {[%clk 0:02:16.3]} 35... Ra8 {[%clk 0:01:10.4]} 36. Rb1
{[%clk 0:02:13.3]} 36... R3xa4 {[%clk 0:01:04.8]} 37. Rxa4 {[%clk 0:02:14.2]}
37... Rxa4 {[%clk 0:01:05]} 38. Rb8+ {[%clk 0:02:15.1]} 38... Kh7 {[%clk
0:01:04.7]} 39. Nxf7 {[%clk 0:02:16]} 39... Ra2 {[%clk 0:00:55.2]} 40. Rb4
{[%clk 0:02:11.4]} 40... Ra7 {[%clk 0:00:46.6]} 41. Ne5 {[%clk 0:02:09]} 41...
Ra5 {[%clk 0:00:45.7]} 42. Nc6 {[%clk 0:02:08.2]} 42... Rc5 {[%clk 0:00:45.5]}
43. Nd4 {[%clk 0:02:07.8]} 43... e5 {[%clk 0:00:44.3]} 44. Ne6 {[%clk
0:02:08.1]} 44... Rc6 {[%clk 0:00:43]} 45. Nf8+ {[%clk 0:02:08.5]} 45... Kg8
{[%clk 0:00:42.6]} 46. Ng6 {[%clk 0:02:09.4]} 46... Re6 {[%clk 0:00:38.6]} 47.
Rb7 {[%clk 0:02:02.4]} 47... Re8 {[%clk 0:00:33.6]} 48. h4 {[%clk 0:01:59.8]}
48... Kh7 {[%clk 0:00:31.7]} 49. Ne7 {[%clk 0:01:57.9]} 49... e4 {[%clk
0:00:26.7]} 50. Kg2 {[%clk 0:01:53.4]} 50... Kh8 {[%clk 0:00:13.3]} 51. Nf5
{[%clk 0:01:53.1]} 51... Rg8 {[%clk 0:00:12.8]} 52. Re7 {[%clk 0:01:52.6]} 52...
Ne8 {[%clk 0:00:05.6]} 53. Rxe4 {[%clk 0:01:51.4]} 53... Kh7 {[%clk 0:00:06.3]}
54. Re7 {[%clk 0:01:50.7]} 54... Kg6 {[%clk 0:00:06.1]} 55. g4 {[%clk
0:01:48.5]} 55... Kf6 {[%clk 0:00:06.2]} 56. Ra7 {[%clk 0:01:46.8]} 56... Rh8
{[%clk 0:00:04.3]} 57. Kg3 {[%clk 0:01:45.7]} 57... g6 {[%clk 0:00:03.6]} 58.
Ra6+ {[%clk 0:01:44.1]} 58... Kf7 {[%clk 0:00:03.3]} 59. Nd4 {[%clk 0:01:44.2]}
59... Nf6 {[%clk 0:00:02.8]} 60. Nf3 {[%clk 0:01:44.3]} 60... Re8 {[%clk
0:00:02]} 61. Ra7+ {[%clk 0:01:44.6]} 61... Kf8 {[%clk 0:00:02.1]} 62. g5 {[%clk
0:01:39.2]} 62... Re6 {[%clk 0:00:02.3]} 63. gxf6 {[%clk 0:01:38.4]} 63... Rxf6
{[%clk 0:00:03.2]} 64. Kg4 {[%clk 0:01:38.9]} 64... Rc6 {[%clk 0:00:02.6]} 65.
Ne5 {[%clk 0:01:38.4]} 65... Re6 {[%clk 0:00:01.5]} 66. f4 {[%clk 0:01:38.3]}
1-0

[Event "*** Titled Tuesday Blitz"]
[Site "Chess.com"]
[Date "2020.10.27"]
[Round "4"]
[White "exoticprincess"]
[Black "anon102030"]
[Result "1-0"]
[WhiteElo "2857"]
[BlackElo "2753"]
[TimeControl "180+1"]
[EndTime "10:38:42 PDT"]
[Termination "exoticprincess won on time"]

1. d4 {[%clk 0:03:00.9]} 1... Nf6 {[%clk 0:02:59.1]} 2. Nc3 {[%clk 0:03:01]}
2... d5 {[%clk 0:02:56.9]} 3. Bf4 {[%clk 0:03:00.8]} 3... e6 {[%clk 0:02:56]} 4.
Nb5 {[%clk 0:02:59.9]} 4... Na6 {[%clk 0:02:49.4]} 5. e3 {[%clk 0:03:00.1]} 5...
c6 {[%clk 0:02:49.2]} 6. Nc3 {[%clk 0:02:59.6]} 6... Nc7 {[%clk 0:02:49.7]} 7.
Nf3 {[%clk 0:02:57.7]} 7... Bb4 {[%clk 0:02:45.6]} 8. Bd3 {[%clk 0:02:55.1]}
8... Nb5 {[%clk 0:02:41.8]} 9. O-O {[%clk 0:02:50.9]} 9... Nxc3 {[%clk
0:02:36.1]} 10. bxc3 {[%clk 0:02:50.8]} 10... Bxc3 {[%clk 0:02:37]} 11. Rb1
{[%clk 0:02:51.4]} 11... O-O {[%clk 0:02:35.1]} 12. Ne5 {[%clk 0:02:51.1]} 12...
Ba5 {[%clk 0:02:33]} 13. Qf3 {[%clk 0:02:50.6]} 13... Nd7 {[%clk 0:02:10.6]} 14.
Qh3 {[%clk 0:02:38.8]} 14... f5 {[%clk 0:02:05.7]} 15. Qg3 {[%clk 0:02:36.2]}
15... Nxe5 {[%clk 0:01:56.4]} 16. Bxe5 {[%clk 0:02:36.1]} 16... Qd7 {[%clk
0:01:55.1]} 17. f4 {[%clk 0:02:28.8]} 17... Bc7 {[%clk 0:01:51.5]} 18. h4 {[%clk
0:02:22.1]} 18... Bxe5 {[%clk 0:01:49.8]} 19. fxe5 {[%clk 0:02:23]} 19... b6
{[%clk 0:01:48.6]} 20. Rf4 {[%clk 0:02:20.5]} 20... Qe7 {[%clk 0:01:40.8]} 21.
Rbf1 {[%clk 0:02:18]} 21... Bd7 {[%clk 0:01:40.6]} 22. h5 {[%clk 0:02:17.1]}
22... c5 {[%clk 0:01:38.5]} 23. c3 {[%clk 0:02:09.1]} 23... Rac8 {[%clk
0:01:37.3]} 24. Kh2 {[%clk 0:02:08]} 24... cxd4 {[%clk 0:01:37.2]} 25. cxd4
{[%clk 0:02:07.4]} 25... Rc3 {[%clk 0:01:37.8]} 26. Bb1 {[%clk 0:02:04.5]} 26...
Rfc8 {[%clk 0:01:38]} 27. R4f2 {[%clk 0:01:39.4]} 27... Bb5 {[%clk 0:01:26]} 28.
Re1 {[%clk 0:01:37.8]} 28... Rc1 {[%clk 0:01:25]} 29. Rb2 {[%clk 0:01:35]} 29...
Be8 {[%clk 0:01:16]} 30. h6 {[%clk 0:01:22.7]} 30... g6 {[%clk 0:01:13.2]} 31.
Rbe2 {[%clk 0:01:13.3]} 31... Bb5 {[%clk 0:01:04.9]} 32. Rb2 {[%clk 0:01:13.2]}
32... Ba6 {[%clk 0:00:59.4]} 33. Rxc1 {[%clk 0:01:05.4]} 33... Rxc1 {[%clk
0:00:59]} 34. Qf4 {[%clk 0:00:59.5]} 34... g5 {[%clk 0:00:21.1]} 35. Qf3 {[%clk
0:00:59]} 35... Qf8 {[%clk 0:00:17.8]} 36. Qh5 {[%clk 0:00:58.8]} 36... Qe7
{[%clk 0:00:16.7]} 37. a4 {[%clk 0:00:57.7]} 37... Rc3 {[%clk 0:00:09.6]} 38. a5
{[%clk 0:00:57.7]} 38... b5 {[%clk 0:00:09.9]} 39. g4 {[%clk 0:00:40.7]} 39...
fxg4 {[%clk 0:00:07.1]} 40. Rf2 {[%clk 0:00:40.7]} 40... Rxe3 {[%clk 0:00:05.2]}
41. Rf6 {[%clk 0:00:40.4]} 41... Rh3+ {[%clk 0:00:02.4]} 42. Qxh3 {[%clk
0:00:40.4]} 42... gxh3 {[%clk 0:00:03.3]} 43. Kxh3 {[%clk 0:00:40.4]} 43... b4
{[%clk 0:00:02.4]} 44. Kg4 {[%clk 0:00:39.8]} 44... Qxf6 {[%clk 0:00:02.6]} 45.
exf6 {[%clk 0:00:39.8]} 45... Kh8 {[%clk 0:00:02.8]} 46. f7 {[%clk 0:00:39.3]}
1-0